[Event "Slovakian-ch Youth 2022"]
[Site "Lubovna"]
[Date "2022.05.25"]
[Round "6.5"]
[White "Rucek, Kristian"]
[Black "Nadzamova, Viktoria"]
[Result "1-0"]
[ECO "A77"]
[WhiteElo "2128"]
[BlackElo "2135"]
[Annotator "TA"]
[PlyCount "43"]
[EventDate "2022.05.22"]
[EventCountry "SVK"]
[SourceTitle "playchess.com"]
[Source "ChessBase"]
[SourceQuality "1"]
[TimeControl "40/5400+30:1800+30"]

{[%evp 23,43,34,39,47,66,57,70,58,57,58,58,55,154,148,138,32,468,455,1066,1070,1265,1139]} 1. d4 {[%emt 0:00:05]} Nf6 {[%emt 0:08:51]} 2. c4 {[%emt 0:00:07]} c5 {[%emt 0:00:07]} 3. d5 {[%emt 0:00:46]} e6 {[%emt 0:00:09]} 4. Nc3 {[%emt 0:00:14]} exd5 {[%emt 0:00:07]} 5. cxd5 {[%emt 0:00:05]} d6 {[%emt 0:00:09]} 6. Nf3 {[%emt 0:00:11]} g6 {[%emt 0:00:09]} 7. Nd2 {[%emt 0:00:06]} Bg7 {[%emt 0:00:11]} 8. e4 {[%emt 0:00:07]} O-O {[%emt 0:00:10]} 9. Be2 {[%emt 0:00:10]} Re8 {[%emt 0:00:29]} 10. O-O {[%emt 0:00:13]} Nbd7 {[%emt 0:03:41]} 11. a4 {[%emt 0:02:03]} a6 {[%emt 0:14:26]} 12. Ra3 {[%emt 0:12:15]} Rb8 {[%emt 0:02:38]} 13. a5 {[%emt 0:02:25] A77: Modern Benoni: Classical: 9...Re8 10 Nd2: 10...a6 and 10...Nbd7.} h6 {[%emt 0:06:22]} 14. Re1 {[%emt 0:11:38]} g5 {[%emt 0:02:57]} 15. Qc2 {[%emt 0:00:58] White is slightly better.} Ne5 {[%emt 0:01:02]} 16. Nf1 {[%emt 0:01:15][%cal Bd2f1,Bf1g3,Bg3f5][%mdl 32]} Ng6 {[%emt 0:05:02]} 17. Ng3 {[%emt 0:02:49] [#]} Nh4 $146 {[%emt 0:02:25]} ({Black should try} 17... Nf4 $14) ({Predecessor:} 17... Nf4 18. Bd2 Ng4 19. Bxg4 Bxg4 20. Nd1 b5 21. axb6 Bxd1 22. Qxd1 Qxb6 23. Bxf4 gxf4 {1-0 (33) Khismatullin,D (2664)-Yuffa,D (2345) Tiumen 2012}) 18. Nd1 $16 {[%emt 0:04:18]} Qe7 {[%emt 0:04:47][%cal Rf6e4] [#]} 19. Bc4 {[%emt 0:02:09]} (19. Bd2 $1 $16) 19... Bh3 $2 {[%emt 0:06:06][%mdl 8192]} 20. gxh3 $18 {[%emt 0:05:20] White is clearly winning.} Nf3+ {[%emt 0:00:07]} (20... Nh7 $142 21. Rf1 Nf8) 21. Rxf3 {[%emt 0:00:09]} g4 {[%emt 0:01:48]} 22. Nf5 {[%emt 0:02:02] Weighted Error Value: White=0.20 (precise) /Black=0.90} 1-0

[Event "Slovakian-ch Youth 2022"]
[Site "Lubovna"]
[Date "2022.05.25"]
[Round "6.5"]
[White "Buda, Alexander"]
[Black "Toth, Mihaly"]
[Result "0-1"]
[ECO "B27"]
[WhiteElo "1744"]
[BlackElo "1909"]
[Annotator "TA"]
[PlyCount "108"]
[EventDate "2022.05.22"]
[EventCountry "SVK"]
[SourceTitle "playchess.com"]
[Source "ChessBase"]
[SourceQuality "1"]
[TimeControl "40/5400+30:1800+30"]

{[%evp 9,107,16,220,61,109,59,66,52,53,46,61,62,96,104,167,102,545,-327,-327,-339,-258,-348,-327,-355,-311,-305,-303,-305,-308,-340,-355,-348,-314,-326,-307,-423,-336,-352,-356,-608,-308,-304,-305,-330,-328,-532,-531,-526,-445,-440,-437,-439,-348,-359,-359,-348,-345,-434,-434,-477,-465,-480,-480,-618,-591,-29974,-29976,-29975,-29976,-29978,-29976,-29974,-29975,-29975,-29976,-29978,-29979,-29981,-29980,-29980,-29980,-29984,-29985,-29991,-29992,-29993,-29994,-29994,-29995,-29995,-29996,-29996,-29997,-29997,-29998,-29998,-29999,-29999,-29999,-29999]} 1. e4 {[%emt 0:00:01]} c5 {[%emt 0:00:03]} 2. Nf3 {[%emt 0:00:05]} g6 3. d4 {[%emt 0:00:19]} cxd4 {[%emt 0:00:25]} 4. Nxd4 {[%emt 0:01:23]} Bg7 {[%emt 0:00:13]} 5. Nc3 {[%emt 0:00:30]} e6 $2 {[#]} (5... Nc6 $11 6. Be3 d6) 6. Be3 $2 {[%emt 0:02:41] B27: Sicilian: 2 Nf3, unusual Black 2nd moves.} ({White must play} 6. Ndb5 $1 $18) 6... Ne7 $14 {[%emt 0:00:44]} 7. Bc4 {[%emt 0:00:30]} ({White should try} 7. Ndb5 $16) 7... O-O {[%emt 0:01:04]} 8. O-O {White is slightly better.} d5 {[%emt 0:02:58]} 9. exd5 {[%emt 0:00:52]} exd5 {[%emt 0:00:16]} 10. Bb3 {[%emt 0:00:27] [#]} Bd7 $146 {[%emt 0:00:52]} ({Predecessor:} 10... Nbc6 11. Qd2 Re8 12. Rad1 Be6 13. Nde2 Qd7 14. Nxd5 Nxd5 15. Bxd5 Bxb2 16. c3 Ba3 {1-0 (29) Ozates,M (1681)-Keskec,Y Antalya 2013}) 11. Nxd5 Nbc6 {[%emt 0:01:59]} (11... Nxd5 $16 {was called for.} 12. Bxd5 Nc6) 12. c3 {[%emt 0:02:48]} ({White should play} 12. Bg5 $18 {aiming for Nxc6.} Bxd4 13. Nxe7+ Nxe7 14. Qxd4) 12... Na5 {[%emt 0:04:55][%mdl 8192]} (12... Nxd5 $16 {is more resistant.} 13. Bxd5 Nxd4) 13. Bc2 $4 {[%emt 0:01:55][%mdl 8192]} Nxd5 $19 {[%emt 0:01:32]} 14. Bd2 {[%emt 0:00:40]} Ne7 {[%emt 0:00:52]} 15. Nb3 {[%emt 0:01:14]} Nxb3 {[%emt 0:01:19]} 16. Bxb3 {[%emt 0:00:22]} Qc7 {[%emt 0:03:30]} 17. Bf4 {[%emt 0:07:00]} Qc8 {[%emt 0:03:12]} ({Don't blunder} 17... Qxf4 $2 18. Qxd7 Nc6 19. Qxb7 $19) 18. Re1 {[%emt 0:02:36]} Re8 {[%emt 0:00:46]} 19. Qf3 {[%emt 0:00:49]} Bc6 {[%emt 0:01:39]} 20. Qd3 {[%emt 0:02:50]} Qf5 {[%emt 0:01:35]} 21. Qxf5 {[%emt 0:04:17]} Nxf5 22. g4 {[%emt 0:04:22]} Rxe1+ {[%emt 0:01:53]} 23. Rxe1 {[%emt 0:00:20]} Nh4 {[%emt 0:03:31]} 24. Re3 $2 {[%emt 0:02:12]} (24. Rd1) 24... Re8 {[%emt 0:00:46]} 25. Rxe8+ {[%emt 0:00:25]} Bxe8 {[%emt 0:00:25]} 26. Bd1 {[%emt 0:00:27]} Bc6 {[%emt 0:00:38]} 27. c4 $2 {[%emt 0:02:10]} (27. Kf1 {might work better.}) 27... Bxb2 {[%emt 0:01:23]} 28. Kf1 {[%emt 0:01:29]} b5 {[%emt 0:00:42]} 29. cxb5 {[%emt 0:00:35]} Bxb5+ {[%emt 0:00:10]} 30. Kg1 {[%emt 0:00:20]} f5 {[%emt 0:01:19]} 31. Bg5 {[%emt 0:00:34] [#]} h6 $1 {[%emt 0:01:36]} 32. Bxh6 {[%emt 0:00:13]} fxg4 {[%emt 0:01:09]} 33. Bb3+ {[%emt 0:01:02]} Kh7 {[%emt 0:00:37]} 34. Be3 {[%emt 0:01:27]} Nf3+ {[%emt 0:01:06]} 35. Kh1 {[%emt 0:00:42]} Bc6 {[%emt 0:00:50]} 36. Bxa7 Bd4 {[%emt 0:01:02]} 37. Bxd4 {[%emt 0:01:09]} Nxd4+ {[%emt 0:00:26] Black mates.} 38. Kg1 {[%emt 0:00:29]} Nxb3 {[%emt 0:00:03]} 39. axb3 {[%emt 0:00:06] KB-K3P} Kg7 {[%emt 0:00:48]} 40. Kf1 {[%emt 0:00:14]} Bd5 {[%emt 0:00:42]} 41. b4 {[%emt 0:31:49]} Kf6 {[%emt 0:31:35]} 42. Kg1 {[%emt 0:01:09]} Kf5 {[%emt 0:00:56]} 43. b5 {[%emt 0:00:27]} Kf4 {[%emt 0:00:27]} 44. b6 {[%emt 0:00:18]} Kf3 {[%emt 0:00:28]} 45. b7 {[%emt 0:00:44]} Bxb7 {[%emt 0:00:51]} 46. h3 {[%emt 0:01:07]} gxh3 {[%emt 0:00:21]} 47. Kh1 {[%emt 0:00:08]} Kxf2+ {[%emt 0:02:14]} 48. Kh2 {[%emt 0:00:02]} Bc8 {[%emt 0:00:36]} 49. Kh1 {[%emt 0:00:17]} g5 {[%emt 0:00:43]} 50. Kh2 {[%emt 0:00:52]} g4 {[%emt 0:00:46]} 51. Kh1 {[%emt 0:00:05]} Bd7 {[%emt 0:00:05]} 52. Kh2 {[%emt 0:00:05]} g3+ {[%emt 0:00:32]} 53. Kh1 {[%emt 0:00:04]} g2+ {[%emt 0:00:08]} 54. Kh2 {[%emt 0:00:16]} g1=Q# {[%emt 0:00:08] Weighted Error Value: White=0.72/Black=0.62} 0-1

[Event "Slovakian-ch Youth 2022"]
[Site "Lubovna"]
[Date "2022.05.25"]
[Round "6.5"]
[White "Demjan, David"]
[Black "Benci, Jozef"]
[Result "0-1"]
[ECO "D00"]
[WhiteElo "1375"]
[BlackElo "1873"]
[Annotator "NA RC COMBH"]
[PlyCount "50"]
[EventDate "2022.05.22"]
[EventCountry "SVK"]
[SourceTitle "playchess.com"]
[Source "ChessBase"]
[SourceQuality "1"]
[TimeControl "40/5400+30:1800+30"]

1. d4 {[%emt 0:00:03]} d5 {[%emt 0:00:40]} 2. Bf4 {[%emt 0:01:16]} Nf6 {[%emt 0:01:01]} 3. Nc3 {[%emt 0:00:08]} g6 {[%emt 0:01:05]} 4. Qd2 {[%emt 0:00:58]} Bg7 {[%emt 0:13:29]} 5. h4 {[%emt 0:01:30]} h5 {[%emt 0:03:07]} 6. Nf3 {[%emt 0:02:38]} c6 {[%emt 0:05:27]} 7. e3 {[%emt 0:01:51]} Bf5 {[%emt 0:07:58]} 8. Bd3 {[%emt 0:06:17]} Bxd3 {[%emt 0:04:07]} 9. Qxd3 {[%emt 0:00:07]} Nbd7 {[%emt 0:02:35]} 10. O-O-O {[%emt 0:01:46]} b5 {[%emt 0:03:05]} 11. b3 {[%emt 0:03:08]} b4 {[%emt 0:16:45]} 12. Na4 {[%emt 0:05:11]} Ne4 {[%emt 0:02:48]} 13. Rdf1 {[%emt 0:03:01]} Qa5 {[%emt 0:12:13]} 14. Nd2 {[%emt 0:03:43]} Nxd2 {[%emt 0:13:04]} 15. Qxd2 {[%emt 0:00:14]} Nb6 {[%emt 0:02:13]} 16. Bc7 {[%emt 0:00:46]} Rc8 {[%emt 0:01:39]} 17. Bxb6 {[%emt 0:02:18]} axb6 {[%emt 0:00:09]} 18. Kb2 {[%emt 0:03:43]} c5 {[%emt 0:02:29]} 19. c3 {[%emt 0:01:45]} bxc3+ {[%emt 0:02:23]} 20. Nxc3 {[%emt 0:01:14]} c4 {[%emt 0:02:32]} 21. Ra1 {[%emt 0:00:37]} b5 {[%emt 0:00:48]} 22. Qc2 {[%emt 0:05:51]} b4 {[%emt 0:00:53]} 23. Na4 {[%emt 0:02:54]} Ra8 {[%emt 0:00:30]} 24. f4 {[%emt 0:02:24]} O-O {[%emt 0:01:07]} 25. Nc5 {[%emt 0:07:40]} Qxc5 {[%emt 0:00:00]} 0-1

[Event "Slovakian-ch Youth 2022"]
[Site "Lubovna"]
[Date "2022.05.25"]
[Round "6.6"]
[White "Vadila, Ondrej"]
[Black "Priechodsky, Radovan"]
[Result "1/2-1/2"]
[ECO "D02"]
[WhiteElo "2082"]
[BlackElo "1965"]
[Annotator "TA"]
[PlyCount "32"]
[EventDate "2022.05.22"]
[EventCountry "SVK"]
[SourceTitle "playchess.com"]
[Source "ChessBase"]
[SourceQuality "1"]
[TimeControl "40/5400+30:1800+30"]

{[%evp 15,32,-7,15,23,44,37,67,45,68,0,0,-34,-38,-42,-40,-47,-34,-57,-37]} 1. d4 {[%emt 0:02:42]} d5 {[%emt 0:00:06]} 2. Bf4 {[%emt 0:00:05]} c5 {[%emt 0:00:07]} 3. e3 {[%emt 0:00:07]} Nc6 {[%emt 0:00:07]} 4. Nf3 {[%emt 0:04:14]} Nf6 {[%emt 0:00:35]} 5. Nbd2 {[%emt 0:00:25]} e6 {[%emt 0:01:01]} 6. c3 {[%emt 0:00:07]} Bd6 {[%emt 0:00:09]} 7. Bg3 {[%emt 0:00:07]} O-O {[%emt 0:03:04]} 8. Bd3 {[%emt 0:00:08]} cxd4 {[%emt 0:02:11]} 9. exd4 {[%emt 0:00:22] D02: 1 d4 d5 2 Nf3 sidelines, including 2...Nf6 3 g3 and 2...Nf6 3 Bf4.} Rb8 {[%emt 0:01:15]} 10. Qe2 {[%emt 0:05:54]} a6 {[%emt 0:20:26]} 11. Ne5 {[%emt 0:13:14] White is slightly better.} Qc7 {[%emt 0:03:37]} 12. f4 {[%emt 0:09:12] [#] White is more active.} ({White should try} 12. O-O $14) 12... g6 $146 {[%emt 0:02:00]} ({Predecessor:} 12... b5 13. Bh4 Be7 14. g4 Nd7 15. Bg3 Ndxe5 16. fxe5 b4 17. O-O bxc3 18. bxc3 Qa5 {1-0 (44) Melaugh,G (2029)-Nolan,C (1935) Dublin 2018}) 13. Qe3 {[%emt 0:13:20]} Nh5 $1 {[%emt 0:12:08] Black is slightly better.} 14. O-O {[%emt 0:06:15]} f6 {[%emt 0:19:59]} 15. Ng4 {[%emt 0:06:32]} Bd7 {[%emt 0:11:19]} 16. Qf3 {[%emt 0:10:01]} Kg7 {[%emt 0:04:49] White did not feel at home in the position after the opening.  Weighted Error Value: White=0.23 (precise) /Black=0.09 (flawless)} 1/2-1/2

[Event "Slovakian-ch Youth 2022"]
[Site "Lubovna"]
[Date "2022.05.25"]
[Round "6.6"]
[White "Magda, Filip"]
[Black "Ammer, Erik"]
[Result "1-0"]
[ECO "C44"]
[WhiteElo "1624"]
[BlackElo "1320"]
[Annotator "NA RC COMBH"]
[PlyCount "107"]
[EventDate "2022.05.22"]
[EventCountry "SVK"]
[SourceTitle "playchess.com"]
[Source "ChessBase"]
[SourceQuality "1"]
[TimeControl "40/5400+30:1800+30"]

1. e4 {[%emt 0:00:17]} e5 {[%emt 0:00:08]} 2. Nf3 {[%emt 0:00:08]} Nc6 {[%emt 0:00:05]} 3. d4 {[%emt 0:00:11]} exd4 {[%emt 0:00:37]} 4. Nxd4 {[%emt 0:00:05]} Nxd4 {[%emt 0:01:46]} 5. Qxd4 {[%emt 0:00:06]} d6 {[%emt 0:00:16]} 6. Nc3 {[%emt 0:02:30]} Nf6 {[%emt 0:00:24]} 7. Bf4 {[%emt 0:07:49]} Be6 {[%emt 0:06:14]} 8. O-O-O {[%emt 0:02:39]} Qe7 {[%emt 0:09:10]} 9. Bb5+ Bd7 {[%emt 0:01:13]} 10. Bxd7+ {[%emt 0:08:38]} Qxd7 {[%emt 0:05:33]} 11. Rhe1 {[%emt 0:03:20]} c5 {[%emt 0:09:12]} 12. Qd3 {[%emt 0:02:13]} O-O-O {[%emt 0:02:22]} 13. Nb5 {[%emt 0:03:47]} a6 {[%emt 0:08:20]} 14. Nxd6+ {[%emt 0:01:06]} Bxd6 {[%emt 0:00:56]} 15. Qxd6 {[%emt 0:05:02]} Qxd6 {[%emt 0:01:14]} 16. Rxd6 {[%emt 0:00:34]} Rhe8 {[%emt 0:01:48]} 17. Rxd8+ {[%emt 0:01:41]} Kxd8 {[%emt 0:01:24]} 18. Bg5 {[%emt 0:00:18]} Re6 {[%emt 0:01:44]} 19. e5 {[%emt 0:02:29]} h6 {[%emt 0:02:26]} 20. Rd1+ {[%emt 0:00:25]} Kc7 {[%emt 0:00:30]} 21. exf6 {[%emt 0:00:37]} hxg5 {[%emt 0:00:24]} 22. fxg7 {[%emt 0:00:07]} Rg6 {[%emt 0:00:12]} 23. g8=Q {[%emt 0:02:44]} Rxg8 {[%emt 0:00:50]} 24. Rd5 {[%emt 0:00:16]} b6 {[%emt 0:02:42]} 25. Rf5 {[%emt 0:00:19]} Rg7 {[%emt 0:00:32]} 26. Rf6 {[%emt 0:00:28]} g4 {[%emt 0:03:26]} 27. Rh6 {[%emt 0:02:27]} f5 {[%emt 0:02:10]} 28. Rf6 {[%emt 0:02:19]} Rg5 {[%emt 0:03:09]} 29. g3 {[%emt 0:02:46]} Rh5 {[%emt 0:00:45]} 30. Kd2 {[%emt 0:00:18]} b5 {[%emt 0:02:26]} 31. Rxa6 {[%emt 0:02:56]} Rxh2 {[%emt 0:00:56]} 32. Ke3 {[%emt 0:00:12]} Rh1 {[%emt 0:00:21]} 33. Rf6 {[%emt 0:02:15]} Rb1 {[%emt 0:02:05]} 34. Rxf5 {[%emt 0:03:24]} Rxb2 {[%emt 0:01:12]} 35. Rxc5+ {[%emt 0:00:11]} Kd6 {[%emt 0:00:09]} 36. Rg5 {[%emt 0:05:17]} Rxc2 {[%emt 0:03:04]} 37. Rxb5 {[%emt 0:00:58]} Rxa2 {[%emt 0:01:41]} 38. Rb4 {[%emt 0:00:28]} Ra3+ {[%emt 0:02:27]} 39. Ke2 {[%emt 0:00:18]} Ke5 {[%emt 0:00:50]} 40. Rxg4 {[%emt 0:00:12]} Kf5 {[%emt 0:00:30]} 41. Rd4 {[%emt 0:30:44]} Kg5 {[%emt 0:30:54]} 42. f3 {[%emt 0:01:03]} Kf5 {[%emt 0:08:26]} 43. Rd5+ {[%emt 0:01:11]} Ke6 {[%emt 0:01:06]} 44. Rd3 {[%emt 0:00:07]} Ra2+ {[%emt 0:00:41]} 45. Ke3 {[%emt 0:00:16]} Ke5 {[%emt 0:00:16]} 46. g4 {[%emt 0:02:00]} Ra4 {[%emt 0:00:41]} 47. f4+ {[%emt 0:05:38]} Rxf4 {[%emt 0:00:31]} 48. Rd5+ {[%emt 0:00:32]} Kxd5 {[%emt 0:00:17]} 49. Kxf4 {[%emt 0:00:05]} Ke6 {[%emt 0:01:08]} 50. Kg5 Ke7 {[%emt 0:13:05]} 51. Kg6 {[%emt 0:01:51]} Ke6 {[%emt 0:00:00]} 52. g5 {[%emt 0:00:00]} Ke7 {[%emt 0:00:00]} 53. Kh7 {[%emt 0:00:00]} Kf7 {[%emt 0:00:00]} 54. g6+ {[%emt 0:00:00]} 1-0

[Event "Slovakian-ch Youth 2022"]
[Site "Lubovna"]
[Date "2022.05.25"]
[Round "6.7"]
[White "Chlpek, Daniel"]
[Black "Kapec, Kristian"]
[Result "1/2-1/2"]
[ECO "C42"]
[WhiteElo "2030"]
[BlackElo "1902"]
[Annotator "TA"]
[PlyCount "24"]
[EventDate "2022.05.22"]
[EventCountry "SVK"]
[SourceTitle "playchess.com"]
[Source "ChessBase"]
[SourceQuality "1"]
[TimeControl "40/5400+30:1800+30"]

{[%evp 11,24,14,22,21,25,1,8,0,0,0,4,4,0,1,16]} 1. e4 {[%emt 0:01:11]} e5 {[%emt 0:00:25]} 2. Nf3 {[%emt 0:00:35]} Nf6 {[%emt 0:00:07]} 3. Nxe5 {[%emt 0:01:41]} d6 {[%emt 0:00:04]} 4. Nf3 {[%emt 0:01:01]} Nxe4 {[%emt 0:00:20]} 5. Nc3 {[%emt 0:02:16]} Nxc3 {[%emt 0:00:47]} 6. dxc3 {[%emt 0:00:06]} Nc6 {[%emt 0:01:32]} 7. Be3 {[%emt 0:01:56] C42: Petroff Defence: 3 Nxe5 and unusual White 3rd moves.} Be6 {[%emt 0:01:08]} 8. Be2 {[%emt 0:01:09]} Be7 {[%emt 0:00:13] The position is equal.} 9. Nd4 {[%emt 0:00:37]} Nxd4 {[%emt 0:00:16]} 10. cxd4 {[%emt 0:00:04]} d5 {[%emt 0:00:06]} 11. O-O {[%emt 0:00:12]} O-O {[%emt 0:00:08]} 12. Bd3 {[%emt 0:00:14] [#]} Bd6 $146 {[%emt 0:00:36] Not much happened in this game.  Weighted Error Value: White=0.06 (flawless) /Black=0.03 (flawless)} ({Predecessor:} 12... Qd7 13. c3 c6 14. Qc2 h6 15. Rfe1 Bf6 16. Bf4 Rfe8 17. h3 Re7 18. Re3 Rae8 19. Rf3 Bg5 20. Qd2 Bxf4 21. Qxf4 Qc8 22. Rg3 Kh8 23. Qe5 Bg4 24. Qf4 {½-½ (24) Watrin,J (1592)-Gehle,P (1497) Osnabrueck 2010}) 1/2-1/2

[Event "Slovakian-ch Youth 2022"]
[Site "Lubovna"]
[Date "2022.05.25"]
[Round "6.7"]
[White "Paholok, Adam"]
[Black "Visvader, Kristof"]
[Result "1-0"]
[ECO "B12"]
[WhiteElo "1449"]
[BlackElo "1607"]
[Annotator "NA RC COMBH"]
[PlyCount "115"]
[EventDate "2022.05.22"]
[EventCountry "SVK"]
[SourceTitle "playchess.com"]
[Source "ChessBase"]
[SourceQuality "1"]
[TimeControl "40/5400+30:1800+30"]

1. e4 {[%emt 0:00:02]} c6 {[%emt 0:00:57]} 2. d4 {[%emt 0:00:06]} d5 {[%emt 0:00:05]} 3. f3 {[%emt 0:00:05]} e6 {[%emt 0:00:53]} 4. Bf4 {[%emt 0:00:34]} Qb6 {[%emt 0:03:53]} 5. b3 {[%emt 0:03:15]} Nf6 {[%emt 0:02:14]} 6. e5 {[%emt 0:03:04]} Nfd7 {[%emt 0:00:10]} 7. Be3 {[%emt 0:01:10]} Nxe5 {[%emt 0:02:36]} 8. Qd2 {[%emt 0:02:10]} Ned7 {[%emt 0:00:47]} 9. Bd3 {[%emt 0:00:18]} c5 {[%emt 0:01:49]} 10. c3 {[%emt 0:00:29]} Nc6 {[%emt 0:01:24]} 11. Ne2 {[%emt 0:00:15]} cxd4 {[%emt 0:01:33]} 12. Nxd4 {[%emt 0:00:27]} Bc5 {[%emt 0:00:47]} 13. Nc2 {[%emt 0:02:53]} Bxe3 {[%emt 0:01:06]} 14. Nxe3 {[%emt 0:00:26]} d4 {[%emt 0:04:27]} 15. Nc4 {[%emt 0:01:23]} dxc3 {[%emt 0:02:30]} 16. Nxc3 {[%emt 0:00:53]} Qc7 {[%emt 0:08:19]} 17. Nb5 {[%emt 0:01:48]} Qd8 {[%emt 0:01:30]} 18. Nbd6+ {[%emt 0:00:36]} Kf8 {[%emt 0:00:49]} 19. O-O {[%emt 0:03:40]} Nce5 {[%emt 0:03:16]} 20. Be4 {[%emt 0:03:41]} Nxc4 {[%emt 0:01:58]} 21. Nxc4 {[%emt 0:01:41]} Qe7 {[%emt 0:08:30]} 22. Rad1 {[%emt 0:01:48]} Nf6 {[%emt 0:02:14]} 23. Qd8+ {[%emt 0:01:10]} Qxd8 {[%emt 0:00:29]} 24. Rxd8+ {[%emt 0:00:12]} Ne8 {[%emt 0:00:08]} 25. Nd6 {[%emt 0:00:18]} Ke7 {[%emt 0:01:12]} 26. Rxc8 {[%emt 0:00:28]} Nxd6 {[%emt 0:00:11]} 27. Rc7+ {[%emt 0:01:05]} Kf6 {[%emt 0:02:20]} 28. Bxb7 {[%emt 0:01:17]} Nxb7 {[%emt 0:00:07]} 29. Rxb7 {[%emt 0:00:08]} Rhb8 {[%emt 0:00:19]} 30. Rd7 {[%emt 0:02:48]} Rd8 {[%emt 0:00:41]} 31. Rfd1 {[%emt 0:00:28]} Rxd7 {[%emt 0:00:21]} 32. Rxd7 {[%emt 0:00:08]} a5 {[%emt 0:00:50]} 33. Rd4 {[%emt 0:03:21]} Ra7 {[%emt 0:00:43]} 34. Ra4 {[%emt 0:01:13]} Ke7 {[%emt 0:02:00]} 35. b4 {[%emt 0:00:29]} Rb7 {[%emt 0:00:15]} 36. bxa5 {[%emt 0:00:16]} Kd6 {[%emt 0:00:30]} 37. Kf2 {[%emt 0:17:39]} Kc5 {[%emt 0:00:17]} 38. Kg3 {[%emt 0:00:37]} Kb5 {[%emt 0:01:11]} 39. a6 {[%emt 0:02:04]} Ra7 {[%emt 0:05:23]} 40. Ra3 {[%emt 0:00:06]} Rxa6 {[%emt 0:02:36]} 41. Rxa6 {[%emt 0:30:08]} Kxa6 {[%emt 0:30:03]} 42. Kf4 {[%emt 0:00:21]} f6 {[%emt 0:00:06]} 43. Ke4 {[%emt 0:02:40]} Kb5 {[%emt 0:00:09]} 44. Kd4 {[%emt 0:00:38]} h5 {[%emt 0:02:18]} 45. f4 {[%emt 0:02:50]} Kb4 {[%emt 0:00:47]} 46. g3 {[%emt 0:01:24]} Kb5 {[%emt 0:00:22]} 47. h3 {[%emt 0:00:13]} Kc6 {[%emt 0:01:08]} 48. a4 {[%emt 0:02:12]} Kb6 {[%emt 0:00:07]} 49. g4 {[%emt 0:00:30]} hxg4 {[%emt 0:00:17]} 50. hxg4 {[%emt 0:00:06]} Kc6 {[%emt 0:00:36]} 51. a5 {[%emt 0:01:34]} Kb5 {[%emt 0:00:08]} 52. g5 {[%emt 0:01:10]} Kc6 {[%emt 0:01:26]} 53. g6 {[%emt 0:06:18]} Kb5 {[%emt 0:00:45]} 54. a6 {[%emt 0:01:26]} Kxa6 {[%emt 0:00:53]} 55. Kc5 {[%emt 0:00:08]} Kb7 {[%emt 0:00:20]} 56. Kd6 {[%emt 0:00:09]} e5 {[%emt 0:00:07]} 57. fxe5 {[%emt 0:00:09]} fxe5 {[%emt 0:00:02]} 58. Kxe5 1-0